[Event "Rosh Hashanah Rapid 2022"]
[Site "Ramat Gan"]
[Date "2022.09.25"]
[Round "1.1"]
[White "Parkhov, Yair"]
[Black "Levitan, Ronit"]
[Result "1-0"]
[ECO "E23"]
[WhiteElo "2479"]
[BlackElo "2160"]
[Annotator "TA"]
[PlyCount "59"]
[EventDate "2022.09.25"]
[EventType "rapid"]
[EventCountry "ISR"]
[SourceTitle "playchess.com"]
[Source "ChessBase"]
[SourceQuality "1"]
[TimeControl "900+5"]

{[%evp 10,59,6,-2,0,0,0,1,0,-4,18,0,0,0,8,5,10,0,6,1,20,7,24,0,0,-52,15,13,13,16,174,0,9,0,8,2,20,28,41,43,252,198,216,32,355,297,360,331,345,354,526,525]} 1. c4 {[%emt 0:00:10]} e6 {[%emt 0:00:06]} 2. d4 {[%emt 0:00:03][%cal Bd2d4,Bd4c5][%mdl 32]} Nf6 {[%emt 0:00:09]} 3. Nc3 {[%emt 0:00:02]} Bb4 {[%emt 0:00:05]} 4. Qb3 {[%emt 0:00:28]} c5 {[%emt 0:01:02]} 5. dxc5 {[%emt 0:00:05]} Nc6 {[%emt 0:00:16]} 6. Nf3 {[%emt 0:00:02]} O-O {[%emt 0:00:30] E23: Nimzo-Indian: 4 Qb3 c5 5 dxc5 Nc6.} 7. Bg5 {[%emt 0:00:32]} h6 {[%emt 0:01:06]} 8. Bxf6 {[%emt 0:01:25]} Qxf6 {[%emt 0:00:05] The position is equal.} 9. g3 {[%emt 0:00:06] [#]} Bxc5 $146 {[%emt 0:04:27]} ({Predecessor:} 9... b6 10. cxb6 Bb7 11. Bg2 Bxc3+ 12. bxc3 Na5 13. Qb4 Nc6 14. Qb3 Na5 15. Qb4 Nc6 16. Qb3 {½-½ (16) Drozdovskij,Y (2627)-Szabo,K (2513) Rijeka 2010}) 10. Bg2 {[%emt 0:00:05]} b6 {[%emt 0:00:09]} 11. O-O {[%emt 0:00:51]} Bb7 {[%emt 0:00:04]} 12. Ne4 {[%emt 0:01:49]} Qe7 {[%emt 0:00:06]} 13. Rfd1 {[%emt 0:00:16]} Rfd8 {[%emt 0:00:40]} 14. Rac1 {[%emt 0:00:31]} Rac8 {[%emt 0:00:38]} 15. Qa4 {[%emt 0:00:45]} Qf8 {[%emt 0:03:12]} (15... f5 $5 {[%cal Rf5e4]} 16. Nxc5 bxc5 $11) 16. a3 {[%emt 0:00:54]} Be7 {[%emt 0:00:06]} 17. b4 {[%emt 0:00:03] [#]} (17. Ne1 $11) 17... d5 {[%emt 0:00:02]} (17... Nxb4 $1 $15 18. axb4 (18. Qxa7 Bxe4) 18... Bxe4 19. Qxa7 Bxb4 20. Rxd7 Rxd7 21. Qxd7 Rd8) 18. cxd5 $11 {[%emt 0:03:23]} exd5 {[%emt 0:00:05]} 19. Ned2 {[%emt 0:00:02]} Bf6 $2 {[%emt 0:00:12]} (19... Qe8 $11) 20. e3 $2 {[%emt 0:00:16]} ({White has to play} 20. Bh3 $18) 20... a6 {[%emt 0:00:41]} 21. Qb3 {[%emt 0:00:17]} b5 {[%emt 0:00:06]} 22. Qb1 {[%emt 0:00:49]} d4 {[%emt 0:01:52]} 23. e4 {[%emt 0:00:54]} Qe7 {[%emt 0:00:37]} 24. Nb3 {[%emt 0:00:07]} Nxb4 $2 {[%emt 0:00:34]} 25. Rxc8 {[%emt 0:00:26]} ({Weaker is} 25. axb4 Bxe4 26. Qa2 Qxb4 $14) 25... Rxc8 {[%emt 0:00:06] [#]} 26. axb4 $2 {[%emt 0:00:05]} ({White must play} 26. e5 $1 $18) 26... Qxb4 $2 {[%emt 0:00:02][%mdl 8192]} (26... Bxe4 $14 27. Qa2 Qxb4) 27. e5 $18 {[%emt 0:00:55]} ({Less strong is} 27. Nfxd4 g6 28. Qa2 Be5 $18) 27... Bxf3 {[%emt 0:00:07]} 28. Bxf3 {[%emt 0:00:03]} Bxe5 {[%emt 0:00:01]} 29. Qf5 {[%emt 0:00:03][%csl LRc8,LRe5]} Qc3 {[%emt 0:00:11]} (29... Rd8 $142) 30. Rc1 {[%emt 0:00:10] Weighted Error Value: White=0.24 (precise) /Black=0.62} 1-0

[Event "Rosh Hashanah Rapid 2022"]
[Site "Ramat Gan"]
[Date "2022.09.25"]
[Round "1.2"]
[White "Sherman, Reem"]
[Black "Gorodetzky, David"]
[Result "0-1"]
[ECO "B15"]
[WhiteElo "2097"]
[BlackElo "2495"]
[Annotator "TA"]
[PlyCount "74"]
[EventDate "2022.09.25"]
[EventType "rapid"]
[EventCountry "ISR"]
[SourceTitle "playchess.com"]
[Source "ChessBase"]
[SourceQuality "1"]
[TimeControl "900+5"]

{[%evp 9,74,18,10,13,17,11,19,3,0,1,3,2,8,-11,7,7,9,-11,58,0,15,5,5,3,82,0,0,0,0,-16,-22,-87,-79,-90,-101,-84,-55,-83,-82,-836,-834,-804,-799,-817,-789,-818,-805,-845,-789,-1145,-1144,-1129,-1107,-991,-731,-731,-577,-716,-713,-710,-700,-1083,-786,-720,-587,-29982,-29983]} 1. e4 {[%emt 0:00:03]} c6 {[%emt 0:00:03]} 2. d4 {[%emt 0:00:03]} d5 {[%emt 0:00:03]} 3. Nc3 {[%emt 0:00:02]} a6 {[%emt 0:00:12]} 4. Nf3 {[%emt 0:00:36]} Bg4 {[%emt 0:00:09]} 5. Be2 {[%emt 0:00:07]} e6 {[%emt 0:00:16]} 6. O-O {[%emt 0:00:52] B15: Caro-Kann: 3 Nc3: 3...g6 and 3...dxe4 4 Nxe4 Nf6 5 Nxf6+ exf6.} Nf6 {[%emt 0:00:03]} 7. e5 {[%emt 0:00:34]} Nfd7 {[%emt 0:00:03]} 8. Ne1 {[%emt 0:00:17] The position is equal.} Bxe2 {[%emt 0:04:21]} 9. Nxe2 {[%emt 0:00:07]} c5 {[%emt 0:00:03]} 10. c3 {[%emt 0:00:11]} Nc6 {[%emt 0:00:04] [#]} 11. Nc2 $146 {[%emt 0:01:10]} ({Predecessor:} 11. Nd3 cxd4 12. cxd4 Be7 13. Be3 O-O 14. Nef4 Nb4 15. Qg4 Nxd3 16. Nxd3 Kh8 17. f4 {1-0 (88) Munoz Pantoja,M (2502)-Fluvia Poyatos,J (2425) Barcelona 2018}) 11... b5 {[%emt 0:01:03]} 12. f4 {[%emt 0:01:07]} g6 {[%emt 0:01:38]} 13. Kh1 {[%emt 0:00:13]} Be7 {[%emt 0:00:27]} ({Black should play} 13... h5 $11) 14. Be3 {[%emt 0:01:35]} ({White should try} 14. g4 $1 $14) 14... Qb6 {[%emt 0:01:14]} 15. dxc5 {[%emt 0:00:31]} Bxc5 {[%emt 0:00:04]} 16. Ned4 {[%emt 0:00:03]} Nxd4 {[%emt 0:01:50]} (16... O-O $11 {keeps the balance.}) 17. Nxd4 {[%emt 0:00:53]} (17. cxd4 $16 Bf8 18. Rc1) 17... Qc7 {[%emt 0:00:34]} 18. a4 {[%emt 0:00:49]} bxa4 {[%emt 0:01:11]} 19. Qxa4 {[%emt 0:01:02] [#] Strongly threatening Nb5.} O-O {[%emt 0:00:15]} 20. Nc2 {[%emt 0:01:16]} (20. Ra2 $11 {remains equal.}) 20... Rfb8 $17 {[%emt 0:00:13]} 21. b4 {[%emt 0:00:54]} Bxe3 {[%emt 0:01:14]} 22. Nxe3 {[%emt 0:00:01]} Rc8 {[%emt 0:00:40]} 23. Rf3 {[%emt 0:01:21]} a5 {[%emt 0:00:55][%cal Ba6a5,Ba5b4,Bb4c3][%mdl 32]} ({Of course not} 23... Nb6 $6 24. Qd1 $11) 24. Ng4 $2 {[%emt 0:00:47][%mdl 8192] Now White is beyond hope.} (24. bxa5 $17 Nc5 25. Qa2) 24... axb4 $19 {[%emt 0:00:15]} 25. Qxa8 {[%emt 0:00:04]} Rxa8 {[%emt 0:00:01]} 26. Rxa8+ {[%emt 0:00:01]} Kg7 {[%emt 0:00:01]} 27. h4 {[%emt 0:02:15]} bxc3 {[%emt 0:00:17] [#] ...c2 is the strong threat.} 28. Ra1 {[%emt 0:00:03]} h5 {[%emt 0:00:03]} 29. Nf2 {[%emt 0:00:03]} Qc4 {[%emt 0:00:07]} 30. Rc1 {[%emt 0:00:05]} c2 {[%emt 0:00:07]} 31. Nd3 {[%emt 0:00:21]} d4 {[%emt 0:00:04][%cal Bd5d4,Bd4d3,Bd3d2][%mdl 32]} 32. Ne1 {[%emt 0:00:08]} Qe2 {[%emt 0:00:07]} 33. Nxc2 {[%emt 0:00:06]} d3 {[%emt 0:00:01]} 34. Ne3 {[%emt 0:00:03]} d2 {[%emt 0:00:05]} 35. Rd1 {[%emt 0:00:01]} Nc5 {[%emt 0:00:02] Threatens to win with ...Qe1+.} 36. Rdf1 {[%emt 0:00:14]} Nd3 {[%emt 0:00:10] And now ...Kh6 would win.} 37. Nd1 {[%emt 0:00:02]} Ne1 {[%emt 0:00:01] Weighted Error Value: White=0.89/Black=0.37} 0-1

[Event "Rosh Hashanah Rapid 2022"]
[Site "Ramat Gan"]
[Date "2022.09.25"]
[Round "1.3"]
[White "Dvoirys, Semen I."]
[Black "Dvir, Ofir"]
[Result "0-1"]
[ECO "B01"]
[WhiteElo "2461"]
[BlackElo "2084"]
[Annotator "TA"]
[PlyCount "141"]
[EventDate "2022.09.25"]
[EventType "rapid"]
[EventCountry "ISR"]
[SourceTitle "playchess.com"]
[Source "ChessBase"]
[SourceQuality "1"]
[TimeControl "900+5"]

{[%evp 15,141,6,9,-8,0,8,26,15,45,44,39,42,199,191,200,198,186,199,188,-45,-46,-98,-110,-130,-128,-121,0,0,0,0,0,0,0,0,0,0,0,0,0,-16,43,11,15,5,13,5,21,17,19,22,168,12,17,15,16,5,6,5,23,23,43,10,22,16,32,25,100,62,78,56,110,99,105,10,77,10,77,70,79,0,0,4,4,0,0,0,0,0,0,0,13,0,0,0,0,0,140,0,0,0,0,0,0,0,584,-4718,29979,29969,29953,6103,2104,13,13,13,14,21,29971,29971,29964,29965,29965,29967,29976,29978,29978,29978,29964,29940]} 1. e4 {[%emt 0:00:03]} d5 {[%emt 0:00:00]} 2. exd5 {[%emt 0:00:02]} Qxd5 {[%emt 0:00:01]} 3. Nc3 {[%emt 0:00:02]} Qa5 {[%emt 0:00:01]} 4. d4 {[%emt 0:00:08]} Nf6 {[%emt 0:00:02]} 5. Nf3 {[%emt 0:00:47]} Bf5 {[%emt 0:00:29]} 6. Ne5 {[%emt 0:00:56]} c6 {[%emt 0:00:03]} 7. Bc4 {[%emt 0:00:15]} e6 {[%emt 0:00:02]} 8. O-O {[%emt 0:00:02]} Nbd7 {[%emt 0:01:49]} 9. Bf4 {[%emt 0:01:16] B01: Scandinavian Defence.} Bb4 {[%emt 0:02:00]} 10. Ne2 {[%emt 0:01:20]} Nxe5 {[%emt 0:00:26]} 11. Bxe5 {[%emt 0:00:08] White has an edge.} (11. dxe5 Nh5 12. Be3 Qxe5 $15) 11... Be7 {[%emt 0:00:03] [#]} 12. Ng3 $146 {[%emt 0:00:34]} ({Predecessor:} 12. c3 b5 13. Bd3 Bxd3 14. Qxd3 O-O 15. Qg3 Ne8 16. Qf3 Rc8 17. Qg3 Bf6 18. f4 {0-1 (32) Safronov,K-Tkachev,I (1950) St Petersburg 2009}) 12... Bg6 {[%emt 0:00:02]} 13. f4 {[%emt 0:00:20] Threatens to win with f5.} Ne4 $2 {[%emt 0:02:07]} (13... O-O $14) 14. f5 $18 {[%emt 0:00:28]} (14. Bxg7 Rg8 15. Be5 Nxg3 16. hxg3 Bf5 $11) (14. Nxe4 Bxe4 15. Qe2 (15. Bxg7 Rg8 $11) 15... Bd5 $16) 14... exf5 {[%emt 0:02:35]} 15. Nxf5 {[%emt 0:01:21]} Bxf5 {[%emt 0:00:01]} 16. Rxf5 {[%emt 0:00:09]} Nd6 {[%emt 0:01:42]} 17. Bxd6 {[%emt 0:00:42] A strong pair of Bishops.} Qxf5 $15 {[%emt 0:00:04]} 18. Qe2 {[%emt 0:00:01]} (18. Bxe7 $15 Kxe7 19. Qd2) 18... Qd7 $1 $17 {[%emt 0:00:12]} 19. Bc5 {[%emt 0:02:08] Hoping for Rf1.} Kf8 {[%emt 0:01:55]} 20. Rf1 {[%emt 0:00:18]} Bxc5 {[%emt 0:00:20]} (20... f6 $1 $17 {Strongly threatening ...Bxc5.} 21. Bxe7+ (21. Be6 Qc7 $17) 21... Qxe7) 21. Rxf7+ $11 {[%emt 0:00:13]} Qxf7 {[%emt 0:00:01]} 22. Bxf7 {[%emt 0:00:01] Black must now prevent Bb3.} Bxd4+ {[%emt 0:00:04]} 23. Kh1 {[%emt 0:00:01]} Kxf7 {[%emt 0:00:02]} 24. Qc4+ {[%emt 0:00:01]} Kg6 {[%emt 0:00:55]} 25. Qd3+ {[%emt 0:00:39]} Kf7 {[%emt 0:00:07]} 26. Qc4+ {[%emt 0:00:17]} ({Of course not} 26. Qxd4 Rhe8 27. Qh4 Kg8 $15) 26... Kg6 {[%emt 0:00:00]} 27. Qxd4 {[%emt 0:00:42][%mdl 4096] Endgame KQ-KRR} Rad8 {[%emt 0:00:01] Prevents Qd6+.} (27... Rhd8 $11 28. Qe4+ Kf7) 28. Qe4+ {[%emt 0:00:06][%mdl 1024] White has compensation.} Kf6 {[%emt 0:00:23]} (28... Kf7 $5 {[%cal Rd8d1]} 29. Qf4+ Ke6 30. Qe3+ Kf6 31. Qf4+ Ke7 32. Qe3+ Kf6 33. Qf2+ Kg6 34. Qg3+ Kf6 35. Qh4+ Kf7 36. Qf4+ Ke7 37. Qg5+ Kd7 $11) 29. Qf4+ {[%emt 0:00:10]} Kg6 {[%emt 0:00:13]} 30. h4 {[%emt 0:00:04]} Rd1+ {[%emt 0:00:42]} 31. Kh2 {[%emt 0:00:01]} Rhd8 $1 {[%emt 0:00:00]} 32. Qg3+ {[%emt 0:00:26]} Kf7 {[%emt 0:00:06] Active counter play!} (32... Kf6 $11) 33. Qf2+ $2 {[%emt 0:00:01]} ({White must play} 33. Qb3+ $18 Kf8 34. Qxb7) 33... Kg8 {[%emt 0:00:18]} 34. Qxa7 {[%emt 0:00:01]} R8d7 {[%emt 0:00:20]} 35. a4 {[%emt 0:00:21]} R1d4 {[%emt 0:00:09]} 36. Kh3 {[%emt 0:00:17]} Kf7 {[%emt 0:00:16]} 37. a5 {[%emt 0:00:08]} h6 {[%emt 0:00:21]} 38. c3 {[%emt 0:00:02]} Rd3+ {[%emt 0:00:02]} 39. Kh2 {[%emt 0:00:02]} R3d5 {[%emt 0:00:07]} 40. b4 {[%emt 0:00:14]} Rd3 {[%emt 0:00:09]} (40... h5 $11) 41. Qc5 {[%emt 0:00:10]} R3d5 {[%emt 0:00:03]} 42. Qc4 {[%emt 0:00:09]} R7d6 {[%emt 0:00:13]} (42... g6 $14) 43. Qg4 $16 {[%emt 0:00:10]} Rd7 {[%emt 0:00:03]} 44. Qe4 {[%emt 0:00:20]} (44. c4 $16 Rd4 45. Qf5+ Kg8 46. g3) 44... Re7 {[%emt 0:00:07] [#]} (44... g6 $1 $11 {remains equal.}) 45. Qf4+ {[%emt 0:00:06]} (45. Qc4 $1 $16) 45... Ke8 {[%emt 0:00:02]} (45... Kg8 $11) 46. c4 {[%emt 0:00:04]} Rde5 {[%emt 0:00:02]} 47. g3 {[%emt 0:00:15]} ({White should play} 47. Qf3 $16) 47... h5 $1 $11 {[%emt 0:00:01]} 48. Qf3 {[%emt 0:00:12]} g6 $1 {[%emt 0:00:01]} 49. Qf6 {[%emt 0:00:14]} R5e6 {[%emt 0:00:18]} 50. Qh8+ {[%emt 0:00:01]} Kf7 $1 {[%emt 0:00:01]} 51. b5 {[%emt 0:00:06]} cxb5 {[%emt 0:00:09]} 52. cxb5 {[%emt 0:00:01]} Re1 {[%emt 0:00:02] ( -> ...R7e2+)} 53. Kg2 {[%emt 0:00:28]} R7e2+ {[%emt 0:00:00]} 54. Kf3 {[%emt 0:00:01]} Re3+ {[%emt 0:00:02]} 55. Kf4 {[%emt 0:00:01] And now Qh7+ would win.} Re6 {[%emt 0:00:18] [#]} (55... Re4+ $11 {keeps the balance.} 56. Kg5 Re5+ 57. Kh6 Rxb5) 56. Kg5 {[%emt 0:00:56]} (56. Qd4 $1 $16) 56... R1e5+ {[%emt 0:00:02]} 57. Kh6 {[%emt 0:00:04]} g5+ {[%emt 0:00:09]} 58. Kxh5 {[%emt 0:00:03]} gxh4+ 59. Kxh4 {[%emt 0:00:01] Qh7+ is the strong threat.} Kg6 {[%emt 0:00:10][%mdl 8192] Inhibits Qh7+.} (59... Rxb5 $11 {and Black stays safe.} 60. Qh7+ Kf6) 60. a6 $4 {[%emt 0:00:13][%mdl 8192]} (60. Qg8+ $18 Kf6 61. a6) 60... Re1 $4 {[%emt 0:00:12][%mdl 8192]} (60... Re8 $19 61. Qxe5 Rxe5) 61. Qh5+ {[%emt 0:00:03]} Kg7 {[%emt 0:00:00]} 62. Qg4+ {[%emt 0:00:08]} Kh7 {[%emt 0:00:00]} 63. Kh3 $2 {[%emt 0:00:06]} (63. Qf5+ $18 Rg6 64. Qf7+ Rg7 65. Qh5+ Kg8 66. Qd5+ Kh8 67. axb7 Rh7+ 68. Kg4 Rg7+ 69. Kh3) 63... bxa6 {[%emt 0:00:05]} 64. bxa6 {[%emt 0:00:14] a7 would kill now.} Rh6+ {[%emt 0:00:15]} 65. Kg2 {[%emt 0:00:01] Intending a7 and mate.} Rhh1 $2 {[%emt 0:00:00][%mdl 8192]} (65... Ra1 $11) 66. Qd7+ {[%emt 0:00:09] White mates.} ({Worse is} 66. a7 Rhg1+ 67. Kh2 Rh1+ 68. Kg2 Rhg1+ 69. Kh3 Rh1+ 70. Kg2 $11) 66... Kg6 {[%emt 0:00:00]} 67. Qc6+ {[%emt 0:00:01]} Kf5 {[%emt 0:00:00]} 68. Qc5+ {[%emt 0:00:08]} Ke4 {[%emt 0:00:00]} 69. a7 {[%emt 0:00:03]} Ra1 {[%emt 0:00:25]} 70. a8=Q+ {[%emt 0:00:04]} Rxa8 {[%emt 0:00:00]} 71. Qc6+ {[%emt 0:00:01][%mdl 32768] Weighted Error Value: White=0.32/Black=0.39. Loss on time!?} 0-1

[Event "Rosh Hashanah Rapid 2022"]
[Site "Ramat Gan"]
[Date "2022.09.25"]
[Round "1.4"]
[White "Zak, Arad"]
[Black "Sokolovsky, Yahli"]
[Result "0-1"]
[ECO "B55"]
[WhiteElo "2042"]
[BlackElo "2419"]
[Annotator "TA"]
[PlyCount "65"]
[EventDate "2022.09.25"]
[EventType "rapid"]
[EventCountry "ISR"]
[SourceTitle "playchess.com"]
[Source "ChessBase"]
[SourceQuality "1"]
[TimeControl "900+5"]

{[%evp 10,65,17,5,35,3,35,21,42,-36,-33,-52,12,-44,0,-68,-43,-51,-49,-56,0,0,0,-21,-11,-9,-14,-89,-88,-171,-161,-154,-154,-195,-194,-182,-156,-200,-31,-153,-91,-398,-291,-815,-769,-1758,-1744,-1672,-1680,-3246,-2608,-3788,-3799,-6207,-4060,-29992,-29993,-29995]} 1. e4 {[%emt 0:00:08]} c5 {[%emt 0:00:17]} 2. Nf3 {[%emt 0:00:05][%cal Bg1f3,Bf3d4,Bd4b3][%mdl 32]} d6 {[%emt 0:00:01]} 3. d4 cxd4 {[%emt 0:00:02]} 4. Nxd4 {[%emt 0:00:07]} Nf6 {[%emt 0:00:01]} 5. f3 {[%emt 0:00:08]} e5 {[%emt 0:00:07]} 6. Nb3 {[%emt 0:00:36]} a5 {[%emt 0:00:45] B55: Sicilian: 2...d6 3 d4 cxd4 4 Nxd4 Nf6 5 f3.} 7. a4 {[%emt 0:00:39]} Be6 {[%emt 0:01:01]} 8. Nc3 {[%emt 0:00:26] [#]} d5 $146 {[%emt 0:00:43][%cal Bd6d5,Bd5d4][%mdl 32] The position is equal.} ({Predecessor:} 8... Be7 9. Bb5+ Nc6 10. Nd5 O-O 11. Be3 Bxd5 12. exd5 Nb4 13. c4 Nh5 14. O-O Bg5 {1-0 (77) Drozdowski,K (2448)-Erdogdu,M (2407) Chess.com INT 2022}) 9. Bg5 {[%emt 0:02:19]} (9. Nxd5 $14 Nxd5 10. Bb5+ (10. exd5 Bxd5 11. Bg5 Qxg5 $14) 10... Nc6 11. exd5 Bxd5 12. Be3) 9... d4 $15 {[%emt 0:00:28] aiming for ...Bb4.} 10. Nb5 {[%emt 0:00:16]} Nc6 {[%emt 0:00:58]} ({Black should try} 10... Bxb3 $15 11. Bxf6 gxf6 12. cxb3 Bb4+ 13. Kf2 Nd7) 11. Bd3 {[%emt 0:00:50]} (11. Nd2 $1 $11) 11... Bb4+ {[%emt 0:00:19]} 12. Bd2 {[%emt 0:00:45]} ({White should play} 12. c3 $11 dxc3 13. bxc3) 12... Be7 {[%emt 0:03:10]} 13. O-O {[%emt 0:00:15]} O-O {[%emt 0:00:04]} 14. f4 {[%emt 0:02:38]} exf4 {[%emt 0:00:05]} (14... Rc8 $15) 15. Bxf4 $11 {[%emt 0:00:07]} Rc8 {[%emt 0:00:09]} 16. e5 {[%emt 0:01:31]} Ng4 {[%emt 0:01:47]} 17. Qe2 {[%emt 0:00:46] Prevents Ne3.} Ne3 {[%emt 0:00:47]} 18. Rf3 {[%emt 0:02:52]} (18. Bxe3 $11 {keeps the balance.} dxe3 19. Qxe3) 18... Bg4 $17 {[%emt 0:01:35]} 19. h3 {[%emt 0:00:03]} (19. Bxe3 $17 {keeps fighting.} Bxf3 20. gxf3 dxe3 21. Qxe3) 19... Bxf3 $19 {[%emt 0:01:11]} 20. Qxf3 {[%emt 0:00:02]} Nb4 {[%emt 0:00:59]} 21. Be4 {[%emt 0:01:31]} Nbxc2 {[%emt 0:00:15]} 22. Rc1 {[%emt 0:00:16]} Qb6 {[%emt 0:00:35] Threatens to win with ...Rc4.} 23. Kh1 {[%emt 0:00:13]} Bb4 $2 {[%emt 0:00:37]} (23... Rfd8 $19 24. Qe2 Qe6 $1 25. Nxa5 Nb4) 24. Qh5 {[%emt 0:00:10] [#]} ({White has to play} 24. Qe2 $1 $15) 24... g6 {[%emt 0:00:01]} ({Better is} 24... h6 $1 {Hoping for ...Qe6.} 25. Qe2 g5 26. Bxg5 hxg5) 25. Qh6 $2 {[%emt 0:00:03][%mdl 8192] White does not recover from this.} (25. Qe2 $17 Rfd8 26. Rxc2 (26. Bxc2 Nxc2 27. Rxc2 d3 $17) 26... Nxc2 27. Bxc2) 25... Be7 {[%emt 0:00:20]} 26. Nd6 $2 {[%emt 0:00:09]} (26. Nd2) 26... Qxb3 {[%emt 0:00:25]} 27. Nf5 {[%emt 0:00:10]} Nxf5 {[%emt 0:00:24]} 28. Bxf5 {[%emt 0:00:06]} gxf5 {[%emt 0:00:19]} 29. Bg5 Rc6 {[%emt 0:00:00]} 30. Bf6 {[%emt 0:00:02]} Bxf6 {[%emt 0:00:00]} 31. exf6 {[%emt 0:00:01]} Qg3 {[%emt 0:00:00] ( -> ...Ne3)} 32. Qd2 {[%emt 0:00:24]} Ne3 {[%emt 0:00:20]} 33. Ra1 {[%emt 0:00:12] Weighted Error Value: White=1.51/Black=0.25 (precise)} 0-1

[Event "Rosh Hashanah Rapid 2022"]
[Site "Ramat Gan"]
[Date "2022.09.25"]
[Round "1.5"]
[White "Zanan, Evgeny"]
[Black "Federovski, Adi"]
[Result "1-0"]
[ECO "B32"]
[WhiteElo "2485"]
[BlackElo "1967"]
[Annotator "TA"]
[PlyCount "59"]
[EventDate "2022.09.25"]
[EventType "rapid"]
[EventCountry "ISR"]
[SourceTitle "playchess.com"]
[Source "ChessBase"]
[SourceQuality "1"]
[TimeControl "900+5"]

{[%evp 15,59,0,0,-52,-39,-70,-65,-90,0,0,0,0,0,0,-4,-21,-15,-19,62,68,66,59,56,14,14,14,16,13,32,26,16,21,27,50,68,60,63,59,71,72,119,119,131,130,519,510]} 1. e4 {[%emt 0:00:03]} c5 {[%emt 0:00:01]} 2. Nf3 {[%emt 0:00:01]} Nc6 {[%emt 0:00:01]} 3. Nc3 {[%emt 0:00:02]} d6 {[%emt 0:01:23]} 4. d4 {[%emt 0:01:07]} cxd4 {[%emt 0:00:02]} 5. Nxd4 {[%emt 0:00:01]} e5 {[%emt 0:00:08]} 6. Ndb5 {[%emt 0:00:05]} a6 {[%emt 0:00:01]} 7. Na3 {[%emt 0:00:01]} Be6 {[%emt 0:00:02]} 8. Nd5 {[%emt 0:00:27]} Nf6 {[%emt 0:00:14]} 9. Nxf6+ {[%emt 0:02:07] B32: Sicilian: Löwenthal and Kalashnikov Variations.} ({Better is} 9. Bg5 $1 $11) 9... Qxf6 $15 {[%emt 0:00:26] [#]} 10. Be2 $146 {[%emt 0:00:01]} ({Predecessor:} 10. f3 Qg6 11. Be3 Rd8 12. c4 Be7 13. Qc2 O-O 14. O-O-O b5 15. Qf2 Rb8 16. h4 f6 {0-1 (33) Vetokhin,S (2309)-Atalik,S (2504) Paracin 2021}) 10... Qg6 {[%emt 0:00:29][%csl LRe4,LRg2]} 11. Bf3 {[%emt 0:00:02] Black is slightly better.} Be7 {[%emt 0:01:36]} (11... Nd4 $17 {[%cal Od6d5]} 12. O-O Be7) 12. c3 $11 {[%emt 0:00:36]} O-O {[%emt 0:02:26][%cal Od6d5]} 13. O-O {[%emt 0:00:03]} f5 {[%emt 0:00:44]} 14. exf5 {[%emt 0:00:02]} Bxf5 {[%emt 0:00:56][%cal Od6d5]} 15. Nc4 {[%emt 0:02:12]} Bd3 {[%emt 0:03:28]} 16. Be2 {[%emt 0:03:05]} Be4 {[%emt 0:00:26]} ({Black should play} 16... Bxe2 $11 17. Qxe2 Rad8) 17. f3 $14 {[%emt 0:00:04]} Bf5 {[%emt 0:00:04]} 18. Ne3 $1 {[%emt 0:00:37]} Be6 {[%emt 0:01:28][%cal Od6d5]} 19. Bc4 {[%emt 0:00:16] Inhibits d5.} Bxc4 {[%emt 0:00:18]} 20. Nxc4 {[%emt 0:00:01]} Qe6 {[%emt 0:00:01]} 21. Nb6 {[%emt 0:00:07]} Rad8 {[%emt 0:00:15] [#] And now ...d5 would win.} 22. Qd5 {[%emt 0:00:31]} Qxd5 {[%emt 0:00:18]} 23. Nxd5 {[%emt 0:00:01]} Bf6 {[%emt 0:00:12]} 24. Be3 {[%emt 0:00:30]} Rfe8 {[%emt 0:01:15]} 25. Rad1 {[%emt 0:00:05] White is more active.} Kf7 {[%emt 0:00:23]} 26. Rd3 {[%emt 0:00:27]} h6 {[%emt 0:00:22]} 27. Rfd1 {[%emt 0:00:02]} e4 {[%emt 0:00:01]} (27... Bg5 $142) 28. fxe4 $16 {[%emt 0:00:08]} Ne5 {[%emt 0:00:11]} 29. Nxf6 {[%emt 0:00:10]} Nxd3 $4 {[%emt 0:00:06][%mdl 8192] [#]} (29... gxf6 $16 30. Rd4 (30. Rxd6 Rxd6 31. Rxd6 Nc4 $16) 30... h5) 30. Nxe8 {[%emt 0:00:03] Weighted Error Value: White=0.10 (very precise) /Black=0.47} 1-0